[Event "Early-Titled-Tuesday-Blitz-September-26-2023"]
[Site "Chess.com"]
[Date "2023.09.26"]
[Round "3"]
[White "HanSchut"]
[Black "PattyCastillo"]
[Result "1-0"]
[WhiteElo "2333"]
[BlackElo "1881"]
[TimeControl "180+1"]
[EndTime "8:26:55 PDT"]
[Termination "HanSchut won by resignation"]

1. e4 {[%clk 0:02:55.7]} 1... c5 {[%clk 0:02:59.3]} 2. Nf3 {[%clk 0:02:55.9]}
2... d6 {[%clk 0:02:59.3]} 3. d4 {[%clk 0:02:56.5]} 3... cxd4 {[%clk 0:03:00.1]}
4. Nxd4 {[%clk 0:02:57.3]} 4... Nf6 {[%clk 0:03:00.5]} 5. f3 {[%clk 0:02:58.2]}
5... a6 {[%clk 0:03:00.8]} 6. c4 {[%clk 0:02:58.5]} 6... e5 {[%clk 0:03:00.9]}
7. Nc2 {[%clk 0:02:59]} 7... Be6 {[%clk 0:03:00.3]} 8. Nc3 {[%clk 0:02:59.8]}
8... Nbd7 {[%clk 0:03:00.8]} 9. b3 {[%clk 0:02:57.6]} 9... Rc8 {[%clk
0:02:59.9]} 10. Be3 {[%clk 0:02:58]} 10... Qa5 {[%clk 0:02:53.9]} 11. Qd2 {[%clk
0:02:58]} 11... Be7 {[%clk 0:02:51.3]} 12. Rc1 {[%clk 0:02:51.1]} 12... b5
{[%clk 0:02:51.4]} 13. b4 {[%clk 0:02:48.4]} 13... Qd8 {[%clk 0:02:42.1]} 14.
cxb5 {[%clk 0:02:47.8]} 14... axb5 {[%clk 0:02:42.1]} 15. Nxb5 {[%clk
0:02:45.8]} 15... d5 {[%clk 0:02:31.8]} 16. Na7 {[%clk 0:02:32.2]} 16... Ra8
{[%clk 0:01:41.8]} 17. Nc6 {[%clk 0:02:29.6]} 17... Qc8 {[%clk 0:01:35.2]} 18.
Nxe7 {[%clk 0:02:26.3]} 18... Kxe7 {[%clk 0:01:35.5]} 19. Nd4 {[%clk 0:02:23.4]}
19... Qb7 {[%clk 0:01:26]} 20. Nxe6 {[%clk 0:02:10.9]} 20... fxe6 {[%clk
0:01:26.9]} 21. exd5 {[%clk 0:02:01]} 21... Nxd5 {[%clk 0:01:25.6]} 22. Bg5+
{[%clk 0:01:48.6]} 22... N7f6 {[%clk 0:01:24.3]} 23. Be2 {[%clk 0:01:47.2]}
23... Rhc8 {[%clk 0:01:01]} 24. b5 {[%clk 0:01:37]} 24... Rxc1+ {[%clk
0:00:58.8]} 25. Qxc1 {[%clk 0:01:37.8]} 25... Rxa2 {[%clk 0:00:57]} 26. Qc5+
{[%clk 0:01:35.9]} 26... Kf7 {[%clk 0:00:53.4]} 27. Kf2 {[%clk 0:01:26.5]} 27...
h6 {[%clk 0:00:50.7]} 28. Bxf6 {[%clk 0:01:23.1]} 28... gxf6 {[%clk 0:00:49.3]}
29. Rc1 {[%clk 0:01:22.9]} 29... Nf4 {[%clk 0:00:46.2]} 30. Rc2 {[%clk
0:01:23.1]} 30... Qd5 {[%clk 0:00:30.2]} 31. Qxd5 {[%clk 0:01:16.9]} 31... exd5
{[%clk 0:00:30.5]} 32. Rxa2 {[%clk 0:01:16.6]} 1-0

[Event "Early-Titled-Tuesday-Blitz-September-26-2023"]
[Site "Chess.com"]
[Date "2023.09.26"]
[Round "3"]
[White "UK_23"]
[Black "GianmarcoVaR"]
[Result "0-1"]
[WhiteElo "2412"]
[BlackElo "2619"]
[TimeControl "180+1"]
[EndTime "8:26:57 PDT"]
[Termination "GianmarcoVaR won by resignation"]

1. e4 {[%clk 0:02:57.9]} 1... c5 {[%clk 0:02:57.7]} 2. Nf3 {[%clk 0:02:57.6]}
2... d6 {[%clk 0:02:58.3]} 3. d4 {[%clk 0:02:57.8]} 3... cxd4 {[%clk 0:02:58.9]}
4. Qxd4 {[%clk 0:02:58.7]} 4... Nf6 {[%clk 0:02:57.5]} 5. Be2 {[%clk 0:02:58.8]}
5... g6 {[%clk 0:02:56]} 6. h3 {[%clk 0:02:57.7]} 6... Bg7 {[%clk 0:02:56.4]} 7.
Qe3 {[%clk 0:02:56.7]} 7... O-O {[%clk 0:02:52.3]} 8. O-O {[%clk 0:02:57]} 8...
d5 {[%clk 0:02:45.9]} 9. e5 {[%clk 0:02:49.7]} 9... Nfd7 {[%clk 0:02:41.9]} 10.
Nc3 {[%clk 0:02:46.5]} 10... e6 {[%clk 0:02:40.9]} 11. Re1 {[%clk 0:02:38.8]}
11... Nc6 {[%clk 0:02:41.1]} 12. Bb5 {[%clk 0:02:01.6]} 12... Ndxe5 {[%clk
0:02:40.6]} 13. Nxe5 {[%clk 0:02:01.4]} 13... Nxe5 {[%clk 0:02:41]} 14. Qg3
{[%clk 0:01:56.6]} 14... Qb6 {[%clk 0:02:29.8]} 15. Bf4 {[%clk 0:01:50]} 15...
Nc6 {[%clk 0:02:21.3]} 16. a4 {[%clk 0:01:42.7]} 16... a6 {[%clk 0:02:19.6]} 17.
Bxc6 {[%clk 0:01:38.6]} 17... bxc6 {[%clk 0:02:19.3]} 18. Be5 {[%clk 0:01:34.3]}
18... f6 {[%clk 0:02:17]} 19. Bd6 {[%clk 0:01:31.4]} 19... Re8 {[%clk
0:02:16.7]} 20. b4 {[%clk 0:01:31.9]} 20... e5 {[%clk 0:02:15.6]} 21. a5 {[%clk
0:01:29.1]} 21... Qb7 {[%clk 0:02:14.2]} 22. Na4 {[%clk 0:01:27.2]} 22... Bf5
{[%clk 0:02:11.1]} 23. c4 {[%clk 0:01:20.1]} 23... Rad8 {[%clk 0:02:06.2]} 24.
c5 {[%clk 0:01:11.6]} 24... Qxb4 {[%clk 0:02:04.5]} 25. Nb6 {[%clk 0:01:11.9]}
25... Rxd6 {[%clk 0:01:56.9]} 26. cxd6 {[%clk 0:01:11.8]} 26... Qxd6 {[%clk
0:01:57.7]} 27. Rac1 {[%clk 0:01:01.4]} 27... c5 {[%clk 0:01:54.4]} 28. Qa3
{[%clk 0:01:02]} 28... Bf8 {[%clk 0:01:52.1]} 29. Red1 {[%clk 0:01:01]} 29...
Be6 {[%clk 0:01:44.4]} 30. Qa4 {[%clk 0:01:00.9]} 30... Rd8 {[%clk 0:01:39]} 31.
Rb1 {[%clk 0:00:51.4]} 31... Qc7 {[%clk 0:01:36.6]} 32. Qh4 {[%clk 0:00:45.8]}
32... Kg7 {[%clk 0:01:33.9]} 33. g4 {[%clk 0:00:41.6]} 33... c4 {[%clk 0:01:29]}
34. Rbc1 {[%clk 0:00:40.2]} 34... d4 {[%clk 0:01:20.6]} 35. g5 {[%clk
0:00:38.5]} 35... f5 {[%clk 0:01:20.5]} 36. f4 {[%clk 0:00:31.3]} 36... e4
{[%clk 0:01:17.9]} 37. Qg3 {[%clk 0:00:25.2]} 37... d3 {[%clk 0:01:14.2]} 0-1

[Event "Early-Titled-Tuesday-Blitz-September-26-2023"]
[Site "Chess.com"]
[Date "2023.09.26"]
[Round "3"]
[White "MKlose11"]
[Black "Noki102"]
[Result "1-0"]
[WhiteElo "2616"]
[BlackElo "2410"]
[TimeControl "180+1"]
[EndTime "8:26:58 PDT"]
[Termination "MKlose11 won by resignation"]

1. e4 {[%clk 0:02:50.9]} 1... e5 {[%clk 0:03:00]} 2. Nf3 {[%clk 0:02:34]} 2...
Nc6 {[%clk 0:02:59.8]} 3. d4 {[%clk 0:02:34.9]} 3... exd4 {[%clk 0:02:58.7]} 4.
Bc4 {[%clk 0:02:18.9]} 4... Nf6 {[%clk 0:02:58.2]} 5. O-O {[%clk 0:02:18.5]}
5... Nxe4 {[%clk 0:02:57.8]} 6. Re1 {[%clk 0:02:18.6]} 6... d5 {[%clk
0:02:58.2]} 7. Bxd5 {[%clk 0:02:18.2]} 7... Qxd5 {[%clk 0:02:59.1]} 8. Nc3
{[%clk 0:02:18.5]} 8... Qd7 {[%clk 0:02:59.7]} 9. Rxe4+ {[%clk 0:02:16.8]} 9...
Be7 {[%clk 0:02:59.6]} 10. Nxd4 {[%clk 0:02:17.5]} 10... f5 {[%clk 0:02:59.1]}
11. Rf4 {[%clk 0:02:17.7]} 11... O-O {[%clk 0:02:56.6]} 12. Nxc6 {[%clk
0:02:16.7]} 12... Qxc6 {[%clk 0:02:51.6]} 13. Qd5+ {[%clk 0:02:16.5]} 13... Qxd5
{[%clk 0:02:51.3]} 14. Nxd5 {[%clk 0:02:17.4]} 14... Bd6 {[%clk 0:02:44.1]} 15.
Rd4 {[%clk 0:02:17.4]} 15... c6 {[%clk 0:02:33]} 16. Bf4 {[%clk 0:02:09.3]}
16... Bc5 {[%clk 0:02:18.6]} 17. Rc4 {[%clk 0:02:07.9]} 17... Bxf2+ {[%clk
0:02:10.4]} 18. Kxf2 {[%clk 0:02:08.8]} 18... cxd5 {[%clk 0:02:10.7]} 19. Rc7
{[%clk 0:02:08.6]} 19... Rf7 {[%clk 0:02:09.6]} 20. Re1 {[%clk 0:02:01.9]} 20...
Rxc7 {[%clk 0:02:02.2]} 21. Bxc7 {[%clk 0:02:00.8]} 21... Bd7 {[%clk 0:02:02.3]}
22. Re7 {[%clk 0:01:59.9]} 22... Be8 {[%clk 0:01:52.7]} 23. Be5 {[%clk
0:01:56.6]} 23... Bf7 {[%clk 0:01:52.6]} 24. Rxb7 {[%clk 0:01:56.2]} 24... h6
{[%clk 0:01:44.7]} 25. b4 {[%clk 0:01:45.4]} 25... a6 {[%clk 0:01:32.8]} 26. a4
{[%clk 0:01:42.5]} 26... Re8 {[%clk 0:01:28.1]} 27. Bd4 {[%clk 0:01:41.2]} 27...
Re4 {[%clk 0:01:20.9]} 28. c3 {[%clk 0:01:40.9]} 28... Be8 {[%clk 0:01:18.4]}
29. b5 {[%clk 0:01:34.5]} 29... axb5 {[%clk 0:01:11.8]} 30. axb5 {[%clk
0:01:35.4]} 30... g5 {[%clk 0:01:05.6]} 31. b6 {[%clk 0:01:33.3]} 31... Bb5
{[%clk 0:00:58.7]} 32. Rg7+ {[%clk 0:01:19.8]} 32... Kf8 {[%clk 0:00:51.4]} 33.
b7 {[%clk 0:01:19.9]} 33... Re8 {[%clk 0:00:43.1]} 34. Rh7 {[%clk 0:01:19.9]}
34... Re2+ {[%clk 0:00:18.7]} 35. Kf3 {[%clk 0:01:18.4]} 1-0

[Event "Early-Titled-Tuesday-Blitz-September-26-2023"]
[Site "Chess.com"]
[Date "2023.09.26"]
[Round "3"]
[White "chesslh19"]
[Black "CMmauricio"]
[Result "1-0"]
[WhiteElo "2338"]
[BlackElo "2554"]
[TimeControl "180+1"]
[EndTime "8:26:58 PDT"]
[Termination "chesslh19 won by resignation"]

1. e4 {[%clk 0:02:47.4]} 1... e6 {[%clk 0:03:00.9]} 2. d4 {[%clk 0:02:47.3]}
2... d5 {[%clk 0:03:01.4]} 3. Nd2 {[%clk 0:02:46.4]} 3... Nf6 {[%clk 0:03:01.5]}
4. e5 {[%clk 0:02:46.5]} 4... Nfd7 {[%clk 0:03:02]} 5. Bd3 {[%clk 0:02:47.1]}
5... c5 {[%clk 0:03:02.5]} 6. c3 {[%clk 0:02:47.8]} 6... Nc6 {[%clk 0:03:03.1]}
7. Ne2 {[%clk 0:02:48.4]} 7... cxd4 {[%clk 0:03:03.8]} 8. cxd4 {[%clk
0:02:49.3]} 8... f6 {[%clk 0:03:04.6]} 9. exf6 {[%clk 0:02:49.9]} 9... Nxf6
{[%clk 0:03:05.5]} 10. O-O {[%clk 0:02:49.9]} 10... Bd6 {[%clk 0:03:06.1]} 11.
Nf3 {[%clk 0:02:49.2]} 11... Qc7 {[%clk 0:03:06.7]} 12. g3 {[%clk 0:02:49]}
12... O-O {[%clk 0:03:07.2]} 13. Bf4 {[%clk 0:02:49.5]} 13... Bd7 {[%clk
0:02:48.9]} 14. Rc1 {[%clk 0:02:47.1]} 14... Rae8 {[%clk 0:02:48.9]} 15. Bxd6
{[%clk 0:02:41.1]} 15... Qxd6 {[%clk 0:02:48.1]} 16. Nc3 {[%clk 0:02:39.2]}
16... a6 {[%clk 0:02:44.1]} 17. Re1 {[%clk 0:02:36.2]} 17... Qb4 {[%clk
0:02:43.8]} 18. Rc2 {[%clk 0:01:21.9]} 18... g6 {[%clk 0:02:37.7]} 19. a3 {[%clk
0:01:17.7]} 19... Qb6 {[%clk 0:02:36.2]} 20. Rd2 {[%clk 0:00:50.6]} 20... Nxd4
{[%clk 0:02:01.8]} 21. Nxd4 {[%clk 0:00:48.3]} 21... Qxd4 {[%clk 0:02:02.7]} 22.
Bxg6 {[%clk 0:00:47.3]} 22... Qb6 {[%clk 0:02:02.9]} 23. Bxe8 {[%clk 0:00:46.3]}
23... Bxe8 {[%clk 0:01:58.6]} 24. Qe2 {[%clk 0:00:28.8]} 24... Bd7 {[%clk
0:01:49.8]} 25. Qe3 {[%clk 0:00:25.5]} 25... Qc6 {[%clk 0:01:45]} 26. f3 {[%clk
0:00:21.6]} 26... Ne8 {[%clk 0:01:41]} 27. Qg5+ {[%clk 0:00:16.3]} 27... Ng7
{[%clk 0:01:41.3]} 28. Ne2 {[%clk 0:00:07.3]} 28... Rxf3 {[%clk 0:01:29.5]} 29.
Nd4 {[%clk 0:00:06.5]} 29... Qc5 {[%clk 0:01:29.9]} 30. Qd8+ {[%clk 0:00:05.5]}
30... Be8 {[%clk 0:01:30.3]} 31. Rf1 {[%clk 0:00:03.9]} 31... Rxf1+ {[%clk
0:01:29.3]} 32. Kxf1 {[%clk 0:00:04]} 32... Qf8+ {[%clk 0:01:28.1]} 33. Kg1
{[%clk 0:00:02.9]} 33... Qf6 {[%clk 0:01:25.1]} 34. Qxf6 {[%clk 0:00:02.5]} 1-0

[Event "Early-Titled-Tuesday-Blitz-September-26-2023"]
[Site "Chess.com"]
[Date "2023.09.26"]
[Round "3"]
[White "Elaisaz"]
[Black "AndrewB92"]
[Result "0-1"]
[WhiteElo "2148"]
[BlackElo "2373"]
[TimeControl "180+1"]
[EndTime "8:27:06 PDT"]
[Termination "AndrewB92 won by resignation"]

1. Nf3 {[%clk 0:02:55.3]} 1... d5 {[%clk 0:02:59.6]} 2. g3 {[%clk 0:02:48.6]}
2... Nf6 {[%clk 0:02:57.1]} 3. Bg2 {[%clk 0:02:49]} 3... Bf5 {[%clk 0:02:57.1]}
4. O-O {[%clk 0:02:46.5]} 4... e6 {[%clk 0:02:57.3]} 5. d3 {[%clk 0:02:46.9]}
5... Be7 {[%clk 0:02:47.5]} 6. Nc3 {[%clk 0:02:24.5]} 6... Nbd7 {[%clk
0:02:47.5]} 7. Nd2 {[%clk 0:02:20.7]} 7... c6 {[%clk 0:02:43.3]} 8. e4 {[%clk
0:02:18.9]} 8... Bg6 {[%clk 0:02:30.5]} 9. Nb3 {[%clk 0:02:06.7]} 9... O-O
{[%clk 0:02:22.5]} 10. f4 {[%clk 0:02:02.3]} 10... dxe4 {[%clk 0:02:16]} 11.
dxe4 {[%clk 0:02:02.1]} 11... Nc5 {[%clk 0:01:53.3]} 12. Qe2 {[%clk 0:01:34.1]}
12... Bh5 {[%clk 0:01:43.2]} 13. Qf2 {[%clk 0:01:29.2]} 13... Ng4 {[%clk
0:01:35.4]} 14. Qd4 {[%clk 0:01:27]} 14... Nxb3 {[%clk 0:01:33.4]} 15. Qxd8
{[%clk 0:01:25.3]} 15... Rfxd8 {[%clk 0:01:29.6]} 16. axb3 {[%clk 0:01:24.8]}
16... Bc5+ {[%clk 0:01:28.8]} 17. Kh1 {[%clk 0:01:21.5]} 17... Nf2+ {[%clk
0:01:26.4]} 18. Kg1 {[%clk 0:01:10.2]} 18... Nxe4+ {[%clk 0:01:21.6]} 19. Kh1
{[%clk 0:01:10.4]} 19... Nf2+ {[%clk 0:01:20.2]} 20. Kg1 {[%clk 0:01:10.7]}
20... Ng4+ {[%clk 0:00:51.6]} 21. Kh1 {[%clk 0:01:09.6]} 21... Bg6 {[%clk
0:00:49.8]} 22. Bf3 {[%clk 0:00:28]} 22... h5 {[%clk 0:00:37.8]} 23. Ne4 {[%clk
0:00:19.5]} 23... Bxe4 {[%clk 0:00:37]} 24. Bxe4 {[%clk 0:00:20.1]} 24... Nf2+
{[%clk 0:00:36.7]} 0-1

[Event "Early-Titled-Tuesday-Blitz-September-26-2023"]
[Site "Chess.com"]
[Date "2023.09.26"]
[Round "3"]
[White "jjlai1111"]
[Black "maurovargas01"]
[Result "1-0"]
[WhiteElo "2335"]
[BlackElo "1885"]
[TimeControl "180+1"]
[EndTime "8:27:06 PDT"]
[Termination "jjlai1111 won on time"]

1. Nf3 {[%clk 0:02:58.3]} 1... Nc6 {[%clk 0:02:53.6]} 2. c4 {[%clk 0:02:58.4]}
2... e5 {[%clk 0:02:53.1]} 3. d3 {[%clk 0:02:58]} 3... f5 {[%clk 0:02:53]} 4.
Nc3 {[%clk 0:02:58]} 4... Nf6 {[%clk 0:02:51.7]} 5. g3 {[%clk 0:02:56.7]} 5...
Bb4 {[%clk 0:02:51.4]} 6. Bd2 {[%clk 0:02:53.9]} 6... O-O {[%clk 0:02:50]} 7. a3
{[%clk 0:02:50.4]} 7... Bxc3 {[%clk 0:02:49.3]} 8. Bxc3 {[%clk 0:02:51.3]} 8...
d6 {[%clk 0:02:48.9]} 9. Bg2 {[%clk 0:02:51.2]} 9... Qe8 {[%clk 0:02:43.8]} 10.
O-O {[%clk 0:02:48.5]} 10... Qh5 {[%clk 0:02:42.5]} 11. d4 {[%clk 0:02:34.2]}
11... e4 {[%clk 0:02:34.7]} 12. Nd2 {[%clk 0:02:27.1]} 12... Ng4 {[%clk
0:02:22.5]} 13. h3 {[%clk 0:02:26.2]} 13... Nf6 {[%clk 0:02:12.1]} 14. e3 {[%clk
0:02:22.3]} 14... Bd7 {[%clk 0:02:00.6]} 15. b4 {[%clk 0:02:09.8]} 15... Rae8
{[%clk 0:01:59.4]} 16. Re1 {[%clk 0:02:00.8]} 16... Qh6 {[%clk 0:01:54.5]} 17.
c5 {[%clk 0:01:56.3]} 17... f4 {[%clk 0:01:38.8]} 18. exf4 {[%clk 0:01:37]}
18... Bxh3 {[%clk 0:01:37.7]} 19. Nxe4 {[%clk 0:01:36.8]} 19... Rxe4 {[%clk
0:01:23.7]} 20. Bxe4 {[%clk 0:01:31.2]} 20... Ng4 {[%clk 0:01:10.9]} 21. Qf3
{[%clk 0:00:59.8]} 21... dxc5 {[%clk 0:00:54.3]} 22. bxc5 {[%clk 0:00:54.1]} 1-0

[Event "Early-Titled-Tuesday-Blitz-September-26-2023"]
[Site "Chess.com"]
[Date "2023.09.26"]
[Round "3"]
[White "rezamahdavi2008"]
[Black "wqws"]
[Result "1-0"]
[WhiteElo "2874"]
[BlackElo "2657"]
[TimeControl "180+1"]
[EndTime "8:27:12 PDT"]
[Termination "rezamahdavi2008 won by resignation"]

1. e4 {[%clk 0:03:00.9]} 1... c5 {[%clk 0:02:59.8]} 2. Nf3 {[%clk 0:03:00.8]}
2... d6 {[%clk 0:03:00.3]} 3. d4 {[%clk 0:02:57.9]} 3... cxd4 {[%clk 0:03:01.2]}
4. Nxd4 {[%clk 0:02:58.8]} 4... Nf6 {[%clk 0:03:01.6]} 5. Nc3 {[%clk 0:02:58.5]}
5... a6 {[%clk 0:03:02.1]} 6. h3 {[%clk 0:02:54]} 6... e5 {[%clk 0:03:02.3]} 7.
Nf3 {[%clk 0:02:53.2]} 7... Be7 {[%clk 0:02:59]} 8. g4 {[%clk 0:02:53.3]} 8...
Be6 {[%clk 0:02:57.9]} 9. Ng5 {[%clk 0:02:52.3]} 9... O-O {[%clk 0:02:46.7]} 10.
Nxe6 {[%clk 0:02:51.6]} 10... fxe6 {[%clk 0:02:46.5]} 11. g5 {[%clk 0:02:52.3]}
11... Ne8 {[%clk 0:02:41.2]} 12. Bc4 {[%clk 0:02:52]} 12... Nc7 {[%clk
0:02:39.3]} 13. Qg4 {[%clk 0:02:51.2]} 13... Qd7 {[%clk 0:02:36.1]} 14. a4
{[%clk 0:02:48.9]} 14... Nc6 {[%clk 0:02:32.7]} 15. Nd5 {[%clk 0:02:47.3]} 15...
Kh8 {[%clk 0:02:11.3]} 16. Nb6 {[%clk 0:02:42.4]} 16... Qe8 {[%clk 0:02:08]} 17.
Nxa8 {[%clk 0:02:41.3]} 17... Qxa8 {[%clk 0:02:07.5]} 18. Bxe6 {[%clk
0:02:38.4]} 18... Nd4 {[%clk 0:01:48.3]} 19. Bb3 {[%clk 0:02:37.2]} 19... Nf3+
{[%clk 0:01:44.2]} 20. Kd1 {[%clk 0:02:30.2]} 20... d5 {[%clk 0:01:22.3]} 21.
exd5 {[%clk 0:02:19.6]} 21... Nd4 {[%clk 0:01:13.3]} 22. Be3 {[%clk 0:02:06.8]}
22... Nxb3 {[%clk 0:01:11.8]} 23. cxb3 {[%clk 0:02:07.7]} 23... Nxd5 {[%clk
0:01:12.2]} 24. Ke2 {[%clk 0:02:08.3]} 24... Nf4+ {[%clk 0:01:04.9]} 25. Kf1
{[%clk 0:02:06]} 25... b5 {[%clk 0:01:02.4]} 26. Kg1 {[%clk 0:02:05]} 26... Qe4
{[%clk 0:00:59.1]} 27. Kh2 {[%clk 0:02:03.9]} 27... b4 {[%clk 0:00:45.1]} 28.
Rac1 {[%clk 0:02:02.2]} 28... h5 {[%clk 0:00:35]} 29. gxh6 {[%clk 0:02:00]}
29... gxh6 {[%clk 0:00:34.2]} 30. Rhg1 {[%clk 0:02:00.4]} 30... Bg5 {[%clk
0:00:31.4]} 31. Rc7 {[%clk 0:01:51.1]} 31... Qd5 {[%clk 0:00:13.9]} 32. Qd7
{[%clk 0:01:49.9]} 32... Qxd7 {[%clk 0:00:11.8]} 33. Rxd7 {[%clk 0:01:50.8]}
33... Ne6 {[%clk 0:00:11.3]} 34. Bxg5 {[%clk 0:01:49.6]} 34... Nxg5 {[%clk
0:00:11.7]} 35. Kg2 {[%clk 0:01:47.9]} 35... Nf3 {[%clk 0:00:11.8]} 36. Rgd1
{[%clk 0:01:45.7]} 36... Nd4 {[%clk 0:00:11.9]} 37. Rd5 {[%clk 0:01:44.2]} 37...
Nxb3 {[%clk 0:00:11.8]} 38. Rxe5 {[%clk 0:01:44]} 38... Rg8+ {[%clk 0:00:11.9]}
39. Kh2 {[%clk 0:01:42.2]} 39... Rf8 {[%clk 0:00:09.7]} 40. Kg1 {[%clk
0:01:36.8]} 40... Rf4 {[%clk 0:00:08.4]} 41. Re7 {[%clk 0:01:35.6]} 41... Nd4
{[%clk 0:00:08.3]} 42. Kg2 {[%clk 0:01:33.8]} 42... Kg8 {[%clk 0:00:08.8]} 43.
Kg3 {[%clk 0:01:33.6]} 43... Ne2+ {[%clk 0:00:09.1]} 44. Rxe2 {[%clk 0:01:33.2]}
1-0

[Event "Early-Titled-Tuesday-Blitz-September-26-2023"]
[Site "Chess.com"]
[Date "2023.09.26"]
[Round "3"]
[White "ploxoi"]
[Black "jk13"]
[Result "0-1"]
[WhiteElo "2422"]
[BlackElo "2625"]
[TimeControl "180+1"]
[EndTime "8:27:12 PDT"]
[Termination "jk13 won by resignation"]

1. d4 {[%clk 0:03:00.9]} 1... Nf6 {[%clk 0:02:57.9]} 2. c4 {[%clk 0:03:01.1]}
2... e6 {[%clk 0:02:57.5]} 3. g3 {[%clk 0:03:01.1]} 3... Bb4+ {[%clk 0:02:57.6]}
4. Bd2 {[%clk 0:03:01.1]} 4... Bxd2+ {[%clk 0:02:57.7]} 5. Qxd2 {[%clk 0:03:02]}
5... O-O {[%clk 0:02:58.2]} 6. Bg2 {[%clk 0:03:02.5]} 6... d5 {[%clk 0:02:59.1]}
7. Nf3 {[%clk 0:03:02.9]} 7... c6 {[%clk 0:02:58.5]} 8. O-O {[%clk 0:03:03.4]}
8... Nbd7 {[%clk 0:02:59.3]} 9. Rc1 {[%clk 0:03:03.8]} 9... b6 {[%clk
0:02:59.7]} 10. Qf4 {[%clk 0:03:02.8]} 10... Bb7 {[%clk 0:02:56.4]} 11. Nbd2
{[%clk 0:03:02.6]} 11... c5 {[%clk 0:02:56.4]} 12. Ne5 {[%clk 0:03:00.2]} 12...
Rc8 {[%clk 0:02:41.9]} 13. h3 {[%clk 0:02:51.2]} 13... h6 {[%clk 0:02:41.1]} 14.
Bf3 {[%clk 0:02:42.2]} 14... Qe7 {[%clk 0:02:12.5]} 15. Nb3 {[%clk 0:02:37.2]}
15... Rfd8 {[%clk 0:02:07.4]} 16. Nxd7 {[%clk 0:02:05.3]} 16... Rxd7 {[%clk
0:02:03.6]} 17. dxc5 {[%clk 0:02:05.6]} 17... bxc5 {[%clk 0:01:25.9]} 18. cxd5
{[%clk 0:02:04.9]} 18... exd5 {[%clk 0:01:25.3]} 19. Qa4 {[%clk 0:02:03.6]}
19... Ba8 {[%clk 0:01:19.2]} 20. Nd4 {[%clk 0:02:00.1]} 20... Rdc7 {[%clk
0:01:00.5]} 21. Nb5 {[%clk 0:01:48.8]} 21... Bc6 {[%clk 0:00:59.9]} 22. Qa5
{[%clk 0:01:49.3]} 22... Rd7 {[%clk 0:00:56.6]} 23. Rd1 {[%clk 0:01:45.3]} 23...
Rb7 {[%clk 0:00:50.8]} 24. a4 {[%clk 0:01:31.3]} 24... d4 {[%clk 0:00:51.1]} 25.
Bxc6 {[%clk 0:01:24.6]} 25... Rxc6 {[%clk 0:00:52]} 26. Rac1 {[%clk 0:01:24.5]}
26... Qxe2 {[%clk 0:00:42.8]} 27. Qd8+ {[%clk 0:01:22.9]} 27... Kh7 {[%clk
0:00:42.4]} 28. Rxd4 {[%clk 0:01:04.2]} 28... cxd4 {[%clk 0:00:37.8]} 29. Rxc6
{[%clk 0:01:03.4]} 29... Qe1+ {[%clk 0:00:38.3]} 30. Kg2 {[%clk 0:01:03]} 30...
Qe4+ {[%clk 0:00:38.5]} 31. Kh2 {[%clk 0:00:58.5]} 31... Qxc6 {[%clk 0:00:39.4]}
32. Qxd4 {[%clk 0:00:58.6]} 32... Rd7 {[%clk 0:00:35.4]} 33. Qf4 {[%clk
0:00:56.6]} 33... Qe4 {[%clk 0:00:31]} 34. Qc1 {[%clk 0:00:56.8]} 34... Qf3
{[%clk 0:00:29.3]} 35. Qc2+ {[%clk 0:00:55.9]} 35... g6 {[%clk 0:00:29.4]} 36.
h4 {[%clk 0:00:50]} 36... Rd1 {[%clk 0:00:28]} 0-1

[Event "Early-Titled-Tuesday-Blitz-September-26-2023"]
[Site "Chess.com"]
[Date "2023.09.26"]
[Round "3"]
[White "Kostukov_Alex"]
[Black "AlexPapasimakopoulos"]
[Result "0-1"]
[WhiteElo "2386"]
[BlackElo "2741"]
[TimeControl "180+1"]
[EndTime "8:27:13 PDT"]
[Termination "AlexPapasimakopoulos won on time"]

1. g3 {[%clk 0:02:58.3]} 1... d5 {[%clk 0:02:58.9]} 2. Bg2 {[%clk 0:02:55.9]}
2... c6 {[%clk 0:02:58.9]} 3. d3 {[%clk 0:02:56.4]} 3... Bg4 {[%clk 0:02:57.7]}
4. h3 {[%clk 0:02:52.2]} 4... Bh5 {[%clk 0:02:56.3]} 5. g4 {[%clk 0:02:52.8]}
5... Bg6 {[%clk 0:02:54.9]} 6. f4 {[%clk 0:02:53.7]} 6... e6 {[%clk 0:02:49.6]}
7. Nf3 {[%clk 0:02:53.7]} 7... Nd7 {[%clk 0:02:48.5]} 8. Nc3 {[%clk 0:02:53.8]}
8... Bc5 {[%clk 0:02:37.1]} 9. e4 {[%clk 0:02:53.1]} 9... h5 {[%clk 0:02:07]}
10. f5 {[%clk 0:02:47.1]} 10... hxg4 {[%clk 0:02:05.3]} 11. hxg4 {[%clk
0:01:57.2]} 11... Rxh1+ {[%clk 0:01:52]} 12. Bxh1 {[%clk 0:01:56.6]} 12... dxe4
{[%clk 0:01:48.2]} 13. dxe4 {[%clk 0:01:51.1]} 13... exf5 {[%clk 0:01:48.4]} 14.
exf5 {[%clk 0:01:48.5]} 14... Qe7+ {[%clk 0:01:48.3]} 15. Qe2 {[%clk 0:01:42.4]}
15... Bh7 {[%clk 0:01:46.8]} 16. Ng5 {[%clk 0:01:31.8]} 16... Ngf6 {[%clk
0:01:40.6]} 17. Nxh7 {[%clk 0:01:21.3]} 17... Nxh7 {[%clk 0:01:39.5]} 18. Qxe7+
{[%clk 0:01:20.3]} 18... Kxe7 {[%clk 0:01:35.6]} 19. Bf4 {[%clk 0:01:19.8]}
19... Bb4 {[%clk 0:01:22.7]} 20. O-O-O {[%clk 0:01:13.4]} 20... Bxc3 {[%clk
0:01:19.7]} 21. bxc3 {[%clk 0:01:04.1]} 21... Re8 {[%clk 0:01:16.7]} 22. Bc7
{[%clk 0:01:00.7]} 22... f6 {[%clk 0:01:00.3]} 23. Be4 {[%clk 0:00:48.4]} 23...
Ng5 {[%clk 0:00:53.5]} 24. Bd3 {[%clk 0:00:47.1]} 24... Nf7 {[%clk 0:00:52.7]}
25. Bc4 {[%clk 0:00:38.8]} 25... Nde5 {[%clk 0:00:51.8]} 26. Bd6+ {[%clk
0:00:36.9]} 26... Nxd6 {[%clk 0:00:51.6]} 0-1